bitfinex/quotes_ETHUSD_20241030
["timestamp","ask_amount","ask_price","bid_price","bid_amount"]
[1730320545115,10.39289498,2665.4,2665.3,1.5118]
[1730320546519,10.94289498,2665.4,2665.3,1.5118]
[1730320550612,6.63111498,2665.4,2665.3,1.5118]
[1730320550814,3.0,2665.5,2665.3,1.5118]
[1730320552627,5.01,2665.6,2665.3,1.5118]
[1730320552813,1.00224833,2665.8,2665.3,1.5118]
[1730320556978,3.0,2665.6,2665.3,1.5118]
[1730320557648,0.39093298,2665.5,2665.3,1.5118]
[1730320559253,0.78283177,2665.5,2665.3,1.5118]
[1730320560294,6.75178,2665.4,2665.3,1.5118]
[1730320560452,3.0,2665.2,2665.0,850.10639558]
[1730320562357,10.38331498,2665.1,2665.0,850.10639558]
[1730320562556,10.38331498,2665.1,2665.0,848.44179558]
[1730320562760,10.93331498,2665.1,2665.0,848.44179558]
[1730320564100,10.99862999,2665.1,2665.0,848.44179558]
[1730320564596,13.32334099,2665.1,2665.0,848.44179558]
[1730320566065,46.75931256,2665.1,2665.0,848.44179558]
[1730320567860,42.64506213,2665.1,2665.0,848.44179558]
[1730320568061,39.64506213,2665.1,2665.0,848.44179558]
[1730320568370,20.72352213,2665.1,2665.0,848.44179558]
[1730320568773,20.72352213,2665.1,2665.0,2597.03466558]
[1730320568774,20.73352213,2665.1,2665.0,2597.03466558]
[1730320569088,16.01967113,2665.1,2665.0,2597.03466558]
[1730320569272,22.03125813,2665.1,2665.0,2597.03466558]
[1730320569973,11.38958056,2665.1,2665.0,2597.03466558]
[1730320570284,3.45626558,2665.1,2665.0,2597.03466558]
[1730320570603,0.45626558,2665.1,2665.0,2597.03466558]
[1730320570909,0.45626558,2665.1,2665.0,2598.68496044]
[1730320571701,0.45626558,2665.1,2665.0,2598.67196558]
[1730320572061,3.45626558,2665.1,2665.0,2598.67196558]
[1730320572294,7.20846558,2665.1,2665.0,2598.68496044]
[1730320573502,3.45626558,2665.1,2665.0,2598.68496044]
[1730320574565,3.84818249,2665.1,2665.0,2598.68496044]
[1730320576698,0.84818249,2665.1,2665.0,2598.68496044]
[1730320576863,0.84818249,2665.1,2665.0,2602.37983749]
[1730320578502,0.45626558,2665.1,2665.0,2602.37983749]
[1730320578799,0.39095057,2665.1,2665.0,2602.37983749]
[1730320579296,0.39095057,2665.1,2665.0,2598.68496044]
[1730320587604,0.39095057,2665.1,2665.0,2598.68496044]
[1730320592550,0.06529437,2665.5,2665.0,2597.04766044]
[1730320592712,1.00224833,2665.8,2665.1,1.5217]
[1730320592911,0.39089351,2665.5,2665.1,1.5217]
[1730320593112,0.39089351,2665.5,2665.3,1.5217]
[1730320593941,0.78275772,2665.5,2665.3,1.5217]
[1730320594633,0.39089351,2665.5,2665.3,1.5217]
[1730320598835,3.0,2665.4,2665.1,0.01299437]
[1730320599038,3.39089351,2665.5,2665.1,3.70787142]
[1730320601661,0.39089351,2665.5,2665.1,3.70787142]
[1730320602068,3.39089351,2665.5,2665.1,3.70787142]
[1730320603821,0.39089351,2665.5,2665.1,3.70787142]
[1730320604462,0.39089351,2665.5,2665.2,5.21857705]
[1730320606130,0.39089351,2665.5,2665.2,1.5237]
[1730320608530,3.39089351,2665.5,2665.2,1.5237]
[1730320609635,3.39089351,2665.5,2665.1,1.21299437]
[1730320609959,3.0,2665.2,2665.1,1.21299437]
[1730320610665,0.39064619,2665.2,2665.1,1.21299437]
[1730320612467,3.39064619,2665.2,2665.1,1.21299437]
[1730320612842,0.39064619,2665.2,2665.1,6.41707142]
[1730320614752,0.39064619,2665.2,2665.1,6.49210694]
[1730320614949,0.39064619,2665.2,2665.1,6.41707142]
[1730320615671,0.39064619,2665.2,2665.1,6.492107]
[1730320617230,1.00222688,2665.6,2665.4,1.662]
[1730320617435,1.00222688,2665.6,2665.5,1.68592181]
[1730320617634,1.00222688,2665.6,2665.5,1.6109]
[1730320621548,1.00222688,2665.6,2665.2,0.01]
[1730320621549,1.00222688,2665.6,2665.2,1.6538]
[1730320621754,4.00222688,2665.6,2665.2,1.6538]
[1730320622490,7.75374688,2665.6,2665.2,1.6538]
[1730320623270,3.0,2665.4,2665.2,1.6538]
[1730320623685,4.00222688,2665.6,2665.2,1.6538]
[1730320624085,7.75381688,2665.6,2665.2,1.6538]
[1730320624584,7.75381688,2665.6,2665.1,1.21299437]
[1730320624585,7.75373688,2665.6,2665.1,1.21299437]
[1730320625770,3.0,2665.4,2665.1,1.21299437]
[1730320625957,4.00222688,2665.6,2665.1,1.21299437]
[1730320626151,3.0,2665.5,2665.1,1.21299437]
[1730320626674,6.7517,2665.5,2665.1,1.21299437]
[1730320627875,0.39088485,2665.4,2665.1,1.21299437]
[1730320628055,0.39088485,2665.4,2665.2,1.67444108]
[1730320628381,0.39088485,2665.4,2665.3,1.6274]
[1730320628956,0.39088485,2665.4,2665.3,1.6174]
[1730320634104,0.39088485,2665.4,2665.1,1.22299437]
[1730320634405,0.78286743,2665.4,2665.1,1.22299437]
[1730320636767,0.78286743,2665.4,2665.3,1.6451]
[1730320639371,0.39088485,2665.4,2665.3,3.93542772]
[1730320639580,1.00222688,2665.6,2665.5,0.01]
[1730320639875,1.00222688,2665.6,2665.5,1.6551]
[1730320640977,1.00222688,2665.6,2665.5,1.6451]
[1730320641499,1.00222688,2665.6,2665.5,1.85004127]
[1730320643720,1.00222688,2665.6,2665.5,1.84004127]
[1730320643907,1.00222688,2665.6,2665.5,1.6451]
[1730320645007,4.82676413,2666.0,2665.5,1.6451]
[1730320645620,8.57770413,2666.0,2665.5,1.6451]
[1730320645824,3.75108,2665.9,2665.2,1.5635]
[1730320646027,3.0,2665.5,2665.1,1.21299437]
[1730320646334,3.0,2665.3,2665.1,1.21299437]
[1730320646711,6.75195,2665.3,2665.1,1.21299437]
[1730320646907,3.0,2665.3,2665.1,1.21299437]
[1730320647229,13.73806,2665.2,2665.1,1.21299437]
[1730320647408,17.36917498,2665.2,2665.1,1.21299437]
[1730320649103,45.73562498,2665.2,2665.1,1.21299437]
[1730320650032,46.12658916,2665.2,2665.1,1.21299437]
[1730320652547,8.7582,2665.1,2665.0,2597.03466558]
[1730320652730,50.638292,2665.1,2665.0,2597.03466558]
[1730320654813,50.638292,2665.1,2665.0,2587.21548328]
[1730320655654,51.03034387,2665.1,2665.0,2587.21548328]
[1730320656352,51.03034387,2665.1,2665.0,2585.33931328]
[1730320656516,51.03034387,2665.1,2665.0,2577.83463328]
[1730320656943,51.03034387,2665.1,2665.0,2572.20612328]
[1730320657251,9.15025187,2665.1,2665.0,2572.20612328]
[1730320657417,59.65025187,2665.1,2665.0,2562.38693661]
[1730320657826,59.65025187,2665.1,2665.0,2560.51076661]
[1730320658034,59.65025187,2665.1,2665.0,2556.75842661]
[1730320658455,63.60325187,2665.1,2665.0,2552.80959344]
[1730320658748,65.99671519,2665.1,2665.0,2552.80959344]
[1730320658948,65.99671519,2665.1,2665.0,2549.05725344]
[1730320659155,65.99671519,2665.1,2665.0,2547.18108344]
[1730320659727,66.38766539,2665.1,2665.0,2547.18108344]
[1730320659927,66.38766539,2665.1,2665.0,2541.55257344]
[1730320660619,66.45300596,2665.1,2665.0,2541.55257344]
[1730320661126,66.45300596,2665.1,2665.0,2539.67640344]
[1730320661447,66.45300596,2665.1,2665.0,2535.92406344]
[1730320662564,66.45300596,2665.1,2665.0,2530.29555344]
[1730320662863,66.45300596,2665.1,2665.0,2528.41938344]
[1730320663806,66.45300596,2665.1,2665.0,2524.66704344]
[1730320664064,71.45300596,2665.1,2665.0,2522.79087344]
[1730320664269,63.94000596,2665.1,2665.0,2522.79087344]
[1730320664435,53.80795096,2665.1,2665.0,2522.79087344]
[1730320664960,44.07251096,2665.1,2665.0,2522.79087344]
[1730320665541,47.07251096,2665.1,2665.0,2522.79087344]
[1730320666530,47.62251096,2665.1,2665.0,2522.79087344]
[1730320666759,47.07251096,2665.1,2665.0,2522.79087344]
[1730320666967,31.62471264,2665.1,2665.0,2522.79087344]
[1730320667958,32.17471264,2665.1,2665.0,2522.79087344]
[1730320668159,21.58885264,2665.1,2665.0,2522.79087344]
[1730320668358,20.15285264,2665.1,2665.0,2522.79087344]
[1730320668585,20.16285264,2665.1,2665.0,2522.79087344]
[1730320671096,20.15285264,2665.1,2665.0,2522.79087344]
[1730320671398,14.60285264,2665.1,2665.0,2522.79087344]
[1730320671554,10.26942964,2665.1,2665.0,2522.79087344]
[1730320673091,10.81942964,2665.1,2665.0,2522.79087344]
[1730320673399,5.15054264,2665.1,2665.0,2522.79087344]
[1730320673697,10.16910864,2665.1,2665.0,2522.79087344]
[1730320674898,13.16910864,2665.1,2665.0,2522.79087344]
[1730320675099,13.71910864,2665.1,2665.0,2522.79087344]
[1730320676596,17.35022362,2665.1,2665.0,2522.79087344]
[1730320679362,13.71910864,2665.1,2665.0,2522.79087344]
[1730320680211,13.72910864,2665.1,2665.0,2522.79087344]
[1730320681331,17.36022362,2665.1,2665.0,2522.79087344]
[1730320682583,22.75922362,2665.1,2665.0,2513.41002344]
[1730320682897,22.75922362,2665.1,2665.0,2501.71466677]
[1730320683097,22.75922362,2665.1,2665.0,2497.96232677]
[1730320684482,22.75922362,2665.1,2665.0,2494.20998677]
[1730320685026,18.79622362,2665.1,2665.0,2492.33381677]
[1730320685185,17.67765762,2665.1,2665.0,2492.33381677]
[1730320685381,59.81396262,2665.1,2665.0,2492.33381677]
[1730320685715,66.74165762,2665.1,2665.0,2492.33381677]
[1730320687192,59.54066962,2665.1,2665.0,2492.33381677]
[1730320687521,54.74042662,2665.1,2665.0,2492.33381677]
[1730320688598,54.73042662,2665.1,2665.0,2492.33381677]
[1730320689007,54.74042662,2665.1,2665.0,2492.33381677]
[1730320691904,54.73042662,2665.1,2665.0,2492.33381677]
[1730320692446,54.72322662,2665.1,2665.0,2492.33381677]
[1730320692946,54.72242662,2665.1,2665.0,2492.33381677]
[1730320693304,54.71922662,2665.1,2665.0,2492.33381677]
[1730320693632,45.81665262,2665.1,2665.0,2492.33381677]
[1730320693932,45.81425262,2665.1,2665.0,2492.33381677]
[1730320694737,45.40469262,2665.1,2665.0,2492.33381677]
[1730320695236,43.93554362,2665.1,2665.0,2492.33381677]
[1730320695612,40.69525662,2665.1,2665.0,2492.33381677]
[1730320696308,45.03400262,2665.1,2665.0,2492.33381677]
[1730320696823,35.85708262,2665.1,2665.0,2493.87021677]
[1730320697119,33.64574262,2665.1,2665.0,2493.87021677]
[1730320697294,17.85937462,2665.1,2665.0,2493.87021677]
[1730320697499,17.85937462,2665.1,2665.0,2497.56509382]
[1730320697500,8.21565762,2665.1,2665.0,2497.56509382]
[1730320698436,8.21565762,2665.1,2665.0,2493.87021677]
[1730320698741,11.21565762,2665.1,2665.0,2493.87021677]
[1730320699102,0.84834264,2665.1,2665.0,2493.87021677]
[1730320699325,0.45629077,2665.1,2665.0,2493.87021677]
[1730320699531,0.3909502,2665.1,2665.0,2493.87021677]
[1730320699833,0.3909502,2665.1,2665.0,2497.56509382]
[1730320700832,0.3909502,2665.1,2665.0,2497.57509382]
[1730320701010,1.39463341,2665.5,2665.1,1.6316]
[1730320701218,1.00236874,2665.5,2665.2,1.70662844]
[1730320702124,4.20745072,2665.7,2665.2,1.70662844]
[1730320702327,6.75156,2665.6,2665.3,1.5227]
[1730320702642,6.75178,2665.4,2665.3,1.5227]
[1730320703412,7.30178,2665.4,2665.3,1.5227]
[1730320709524,3.7522,2665.1,2665.0,2493.84611677]
[1730320709725,15.93331498,2665.1,2665.0,2492.33381677]
[1730320710321,23.72973798,2665.1,2665.0,2492.33381677]
[1730320712358,24.12041108,2665.1,2665.0,2492.33381677]
[1730320716626,24.51271863,2665.1,2665.0,2492.33381677]
[1730320717269,24.52271863,2665.1,2665.0,2492.33381677]
[1730320721142,26.15461863,2665.1,2665.0,2471.45192092]
[1730320721386,26.65431454,2665.1,2665.0,2471.45192092]
[1730320721684,26.2199288,2665.1,2665.0,2471.45192092]
[1730320721988,26.2199288,2665.1,2665.0,2469.57575092]
[1730320722463,26.2199288,2665.1,2665.0,2465.82341092]
[1730320723177,26.2199288,2665.1,2665.0,2462.07107092]
[1730320723378,26.2199288,2665.1,2665.0,2458.31873092]
[1730320724074,26.2199288,2665.1,2665.0,2446.62337425]
[1730320724272,26.2199288,2665.1,2665.0,2440.99486425]
[1730320725564,26.2199288,2665.1,2665.0,2437.24252425]
[1730320725878,26.2199288,2665.1,2665.0,2431.61401425]
[1730320726362,26.2199288,2665.1,2665.0,2429.73784425]
[1730320726958,26.2199288,2665.1,2665.0,2427.86167425]
[1730320727766,26.2199288,2665.1,2665.0,2425.98550425]
[1730320727966,26.2199288,2665.1,2665.0,2422.23316425]
[1730320728185,21.2099288,2665.1,2665.0,2418.48082425]
[1730320728495,17.39691382,2665.1,2665.0,2418.48082425]
[1730320729881,20.94691382,2665.1,2665.0,2418.48082425]
[1730320730257,20.55624072,2665.1,2665.0,2418.48082425]
[1730320732456,12.75981772,2665.1,2665.0,2418.48082425]
[1730320732657,45.93394772,2665.1,2665.0,2418.48082425]
[1730320733762,45.28112972,2665.1,2665.0,2418.48082425]
[1730320735161,44.39450572,2665.1,2665.0,2418.48082425]
[1730320735365,40.39948972,2665.1,2665.0,2418.48082425]
[1730320736457,39.13251372,2665.1,2665.0,2418.48082425]
[1730320737497,38.12023572,2665.1,2665.0,2418.48082425]
[1730320737799,15.75714272,2665.1,2665.0,2420.01472425]
[1730320737958,9.20981772,2665.1,2665.0,2420.01472425]
[1730320738556,0.45761772,2665.1,2665.0,2423.7096013]
[1730320738762,4.20981772,2665.1,2665.0,2423.7096013]
[1730320738982,0.06531017,2665.1,2665.0,2420.01472425]
[1730320739789,3.81751017,2665.1,2665.0,2420.01472425]
[1730320740355,6.81751017,2665.1,2665.0,2420.01472425]
[1730320742597,12.36751017,2665.1,2665.0,2420.01472425]
[1730320742800,12.75816077,2665.1,2665.0,2420.01472425]
[1730320744016,27.18632275,2665.1,2665.0,2420.01472425]
[1730320744674,18.79883877,2665.1,2665.0,2420.01472425]
[1730320744879,12.75816077,2665.1,2665.0,2420.01472425]
[1730320745084,15.26971777,2665.1,2665.0,2420.01472425]
[1730320745406,12.75816077,2665.1,2665.0,2420.01472425]
[1730320746193,17.62681277,2665.1,2665.0,2420.01472425]
[1730320746462,12.75816077,2665.1,2665.0,2420.01472425]
[1730320747626,15.78428777,2665.1,2665.0,2420.01472425]
[1730320747777,12.75816077,2665.1,2665.0,2420.01472425]
[1730320751508,7.20816077,2665.1,2665.0,2421.5716644]
[1730320751897,4.20816077,2665.1,2665.0,2421.5716644]
[1730320753278,3.45596077,2665.1,2665.0,2421.5716644]
[1730320753474,3.06531017,2665.1,2665.0,2421.5716644]
[1730320753710,0.06531017,2665.1,2665.0,2421.5816644]
[1730320754005,4.75428443,2665.3,2665.0,2421.5816644]
[1730320754207,4.75428443,2665.3,2665.2,1.5894]
[1730320755008,4.00236443,2665.3,2665.2,1.5894]
[1730320755623,1.00236443,2665.3,2665.2,1.5994]
[1730320756512,7.20773996,2665.5,2665.2,1.5994]
[1730320756719,7.20773996,2665.5,2665.4,1.6215]
[1730320756720,10.95946996,2665.5,2665.4,1.6215]
[1730320756900,7.20773996,2665.5,2665.4,1.6215]
[1730320759777,7.75773996,2665.5,2665.4,1.6215]
[1730320760273,7.75773996,2665.5,2665.0,2418.48082425]
[1730320760473,7.75773996,2665.5,2665.0,2420.04962425]
[1730320760474,6.7522,2665.1,2665.0,2420.04962425]
[1730320766355,7.1426336,2665.1,2665.0,2420.04962425]
[1730320768737,0.3904336,2665.1,2665.0,2423.7445013]
[1730320768936,3.7518,2665.4,2665.1,1.5888]
[1730320770363,3.0,2665.3,2665.1,1.5888]
[1730320770662,3.0,2665.2,2665.1,1.5888]
[1730320770828,3.0,2665.2,2665.1,5.28367705]
[1730320771618,6.75185,2665.4,2665.1,5.28367705]
[1730320772067,7.14231727,2665.4,2665.1,5.28367705]
[1730320773060,3.0,2665.2,2665.1,5.28367705]
[1730320773262,0.39046727,2665.4,2665.3,1.5932]
[1730320773555,0.06529542,2665.5,2665.3,1.66821798]
[1730320775958,0.06529542,2665.5,2665.3,1.5932]
[1730320780290,0.06529542,2665.5,2665.3,1.59163161]
[1730320783803,3.75208,2665.2,2665.1,1.6371]
[1730320784106,6.7522,2665.1,2665.0,2418.48082425]
[1730320785582,3.0,2665.1,2665.0,2418.48082425]
[1730320785756,3.0,2665.1,2665.0,2418.48925586]
[1730320787361,6.7522,2665.1,2665.0,2418.48082425]
[1730320800933,7.14271905,2665.1,2665.0,2418.48082425]
[1730320809541,6.7522,2665.1,2665.0,2418.48082425]
[1730320812372,7.20777344,2665.1,2665.0,2418.48082425]
[1730320823101,0.45557344,2665.1,2665.0,2420.00842425]
[1730320823274,0.45557344,2665.1,2665.0,2423.7033013]
[1730320823664,0.06520932,2665.1,2665.0,2423.7033013]
[1730320824818,0.06520932,2665.1,2665.0,2423.72173291]
[1730320825099,0.3923056,2665.6,2665.5,1.5821]
[1730320825275,3.7508,2666.1,2665.8,1.5721]
[1730320825683,3.75094,2666.0,2665.8,1.5721]
[1730320826383,3.0,2665.9,2665.8,1.5721]
[1730320827019,4.62445399,2666.1,2665.8,1.5721]
[1730320827177,3.75096,2666.0,2665.8,1.5721]
[1730320827378,8.37526399,2666.1,2665.8,1.5721]
[1730320829526,6.75081,2666.1,2665.8,1.5721]
[1730320830526,3.75099,2666.0,2665.8,1.5721]
[1730320830678,3.0,2665.9,2665.8,1.5721]
[1730320832019,4.62445399,2666.0,2665.8,1.64946194]
[1730320832719,3.0,2666.0,2665.8,1.64946194]
[1730320832938,3.0,2666.0,2665.8,1.5721]
[1730320833085,3.0,2666.0,2665.9,0.07710343]
[1730320833430,3.0,2666.0,2665.9,0.15211724]
[1730320834014,6.75093,2666.0,2665.9,0.07710343]
[1730320834214,6.75093,2666.0,2665.8,1.5721]
[1730320834531,6.75093,2666.0,2665.9,0.07710343]
[1730320835706,6.75093,2666.0,2665.8,1.5721]
[1730320835927,6.75093,2666.0,2665.9,0.07710343]
[1730320837514,6.75093,2666.0,2665.8,1.5721]
[1730320837815,6.75093,2666.0,2665.9,0.07710343]
[1730320838193,6.75107,2665.9,2665.8,1.5721]
[1730320838521,3.7518,2665.4,2665.3,1.6283]
[1730320838838,3.7518,2665.4,2665.0,2418.49082425]
[1730320838839,3.0,2665.1,2665.0,2420.10912425]
[1730320839132,3.0,2665.1,2665.0,2418.48082425]
[1730320839133,6.7522,2665.1,2665.0,2418.48082425]
[1730320844022,3.0,2665.1,2665.0,2422.40754994]
[1730320844242,3.75157,2665.6,2665.0,2422.40754994]
[1730320844471,7.50315,2665.6,2665.0,2422.41598155]
[1730320844664,3.75157,2665.6,2665.1,3.69487705]
[1730320844824,3.75171,2665.5,2665.1,3.69487705]
[1730320845023,3.75194,2665.3,2665.1,3.69487705]
[1730320845260,3.75194,2665.3,2665.0,2419.99892425]
[1730320845433,6.75206,2665.2,2665.0,2419.99892425]
[1730320845634,3.0,2665.2,2665.0,2419.99892425]
[1730320847660,3.0,2665.2,2665.1,0.0754709]
[1730320847849,3.0,2665.2,2665.1,0.15050539]
[1730320848053,3.0,2665.2,2665.1,0.0754709]
[1730320848742,6.75206,2665.2,2665.1,0.0754709]
[1730320850067,3.0,2665.2,2665.1,0.0754709]
[1730320851435,6.75206,2665.2,2665.1,0.0754709]
[1730320856091,3.0,2665.2,2665.1,0.15050662]
[1730320862587,3.0,2665.2,2665.1,0.0754709]
[1730320862798,8.92601846,2665.2,2665.1,0.0754709]
[1730320862949,9.3164399,2665.2,2665.1,0.0754709]
[1730320871146,9.38165902,2665.2,2665.1,0.0754709]
[1730320880844,11.03175902,2665.2,2665.1,0.0754709]
[1730320884549,27.03608102,2665.2,2665.1,0.0754709]
[1730320888386,27.62387983,2665.2,2665.1,0.0754709]
[1730320892079,11.61955783,2665.2,2665.1,0.0754709]
[1730320898297,11.61955783,2665.2,2665.1,9e-07]
[1730320898494,11.61955783,2665.2,2665.1,4.01e-06]
[1730320898773,11.61955783,2665.2,2665.0,2414.72848826]
[1730320898774,8.9253,2665.1,2665.0,2414.72848826]
[1730320899117,1.04343937,2665.2,2665.0,2419.92656531]
[1730320899415,1.04343937,2665.2,2665.1,3.20219368]
[1730320899416,0.39042144,2665.2,2665.1,3.20219368]
[1730320899599,0.39042144,2665.2,2665.1,8.09224688]
[1730320899902,4.14347414,2665.6,2665.3,1.5032]
[1730320900110,4.14347414,2665.6,2665.4,0.01]
[1730320900488,0.39187414,2665.6,2665.4,0.01]
[1730320900696,0.39187414,2665.6,2665.5,3.12715846]
[1730320901016,3.75101,2666.0,2665.5,3.12715846]
[1730320901017,3.0,2665.9,2665.6,1.5032]
[1730320901175,3.0,2665.9,2665.8,1.6437]
[1730320902120,3.0,2666.0,2665.8,1.6437]
[1730320902775,6.75094,2666.0,2665.8,1.6437]
[1730320903015,0.06521346,2666.6,2666.0,0.01843161]
[1730320903170,5.0,2667.3,2665.8,3.62637177]
[1730320903171,3.74974,2666.9,2666.3,3.76881161]
[1730320903376,4.14160058,2667.1,2666.5,1.6594]
[1730320903577,4.14160058,2667.1,2666.7,1.5272]
[1730320903915,0.06523718,2667.5,2666.9,1.5272]
[1730320903916,3.74889,2667.5,2666.9,1.5272]
[1730320904122,8.74858,2667.7,2666.7,0.00843161]
[1730320904123,3.74907,2667.4,2667.1,1.5272]
[1730320904477,3.74907,2667.4,2666.5,1.5446]
[1730320904478,3.74975,2666.9,2666.5,1.5446]
[1730320904828,3.74982,2666.8,2666.5,1.5446]
[1730320904973,3.75003,2666.7,2666.5,1.5446]
[1730320905173,3.75009,2666.6,2666.5,1.5446]
[1730320905372,3.75003,2666.7,2666.5,1.5446]
[1730320905810,3.0,2666.6,2666.5,1.5446]
[1730320907020,6.75009,2666.6,2666.5,1.5446]
[1730320907199,3.0,2666.6,2666.5,1.5446]
[1730320907523,4.14114195,2667.3,2666.6,5.41508161]
[1730320907811,3.74,2667.9,2667.1,1.5742]
[1730320908009,3.74887,2667.5,2667.1,1.5742]
[1730320910619,0.1268262,2668.6,2667.7,1.62133161]
[1730320910826,3.74782,2668.3,2667.8,0.01]
[1730320911124,3.74806,2668.1,2667.8,0.01]
[1730320911303,0.39178284,2668.5,2668.0,3.74802]
[1730320911618,3.74779,2668.3,2667.9,1.59773161]
[1730320911775,3.74779,2668.3,2667.9,2.12114195]
[1730320912052,3.74764,2668.4,2668.0,1.60454769]
[1730320912270,3.74764,2668.4,2668.0,1.5296]
[1730320912475,3.74778,2668.3,2668.0,1.5296]
[1730320912696,6.74798,2668.1,2668.0,1.5296]
[1730320913297,3.74868,2667.6,2667.5,1.6245]
[1730320913479,6.74868,2667.6,2667.5,1.6245]
[1730320913799,6.74868,2667.6,2667.5,1.68989649]
[1730320915270,3.74799,2668.1,2667.5,5.31626826]
[1730320915506,3.74799,2668.1,2667.7,1.5038]
[1730320915720,3.74775,2668.3,2667.8,0.09338402]
[1730320916002,3.74812,2668.0,2667.9,1.5038]
[1730320916501,3.74812,2668.0,2667.9,1.56877825]
[1730320917058,3.74812,2668.0,2667.9,1.5038]
[1730320918382,3.74812,2668.0,2667.9,1.56872516]
[1730320919774,6.74812,2668.0,2667.9,0.06492516]
[1730320920106,6.74854,2667.7,2667.6,1.5986]
[1730320920262,3.74901,2667.4,2667.2,1.5986]
[1730320920778,3.74901,2667.4,2667.3,0.0655754]
[1730320920976,3.0,2667.7,2667.2,5.23340338]
[1730320921174,1.5761,2668.3,2667.2,5.23340338]
[1730320921175,3.74827,2667.9,2667.5,1.5986]
[1730320921491,3.7482,2668.0,2667.6,0.0652501]
[1730320921801,3.74834,2667.9,2667.7,0.07495768]
[1730320922002,3.74834,2667.9,2667.7,0.14010766]
[1730320922685,3.0,2668.3,2667.7,0.06514998]
[1730320922686,3.7484,2667.8,2667.7,0.06514998]
[1730320922870,3.0,2668.3,2667.6,0.07496116]
[1730320923066,3.74849,2667.8,2667.6,0.07496116]
[1730320923393,3.74849,2667.8,2667.7,0.06514583]
[1730320923966,6.74849,2667.8,2667.7,0.06514583]
[1730320924167,6.74849,2667.8,2667.6,0.07496591]
[1730320924395,3.74854,2667.7,2667.6,0.07496591]
[1730320924583,3.74868,2667.6,2667.5,1.5986]
[1730320924790,3.74868,2667.6,2667.5,1.66396505]
[1730320925205,6.74868,2667.6,2667.5,1.66396505]
[1730320925381,6.74868,2667.6,2667.5,0.06536505]
[1730320925580,3.74925,2667.2,2667.1,1.5755]
[1730320925805,3.74925,2667.2,2667.1,1.63923061]
[1730320926213,3.75081,2666.1,2665.7,1.65683161]
[1730320926415,3.75072,2666.2,2665.7,1.65683161]
[1730320926705,3.75081,2666.1,2665.8,0.54082616]
[1730320926958,3.0,2666.3,2665.9,0.08343943]
[1730320927206,3.62637177,2666.7,2665.9,0.08343943]
[1730320927207,3.0,2666.9,2666.3,1.5998]
[1730320927370,3.74995,2666.7,2666.4,0.074989]
[1730320927799,3.74995,2666.7,2666.3,1.5998]
[1730320928002,7.49983,2666.8,2666.4,0.07499184]
[1730320928312,3.75002,2666.7,2666.4,0.61937219]
[1730320928512,3.75002,2666.7,2666.3,1.5998]
[1730320928976,3.75002,2666.7,2666.4,0.07499189]
[1730320929316,3.0,2666.9,2666.5,1.65323161]
[1730320929527,3.0,2666.8,2666.5,1.65323161]
[1730320929969,3.75003,2666.7,2666.5,1.6448]
[1730320930174,3.62637177,2666.6,2666.2,1.6448]
[1730320930376,3.75058,2666.3,2666.2,1.6448]
[1730320931422,3.75013,2666.6,2666.2,1.6448]
[1730320931635,3.75013,2666.6,2666.3,0.07499438]
[1730320931817,3.75013,2666.6,2666.3,0.62289598]
[1730320932137,3.75013,2666.6,2666.3,0.5479016]
[1730320932549,3.75024,2666.5,2666.3,0.5479016]
[1730320932845,3.75024,2666.5,2666.2,1.6448]
[1730320933013,3.75024,2666.5,2666.4,0.06018502]
[1730320933339,3.75024,2666.5,2666.2,1.6448]
[1730320933546,7.50033,2666.6,2666.2,1.6448]
[1730320933704,3.75035,2666.5,2666.3,0.06029354]
[1730320934027,3.75035,2666.5,2666.2,1.6448]
[1730320934335,3.75035,2666.5,2666.4,0.06018502]
[1730320934639,3.75051,2666.3,2666.2,1.6448]
[1730320937507,3.0,2666.6,2666.2,5.39538]
[1730320937752,7.49999,2666.7,2666.3,0.54038116]
[1730320937949,7.49999,2666.7,2666.3,0.60072956]
[1730320937950,3.74995,2666.7,2666.3,0.60072956]
[1730320938125,3.75016,2666.6,2666.3,0.0603484]
[1730320938327,3.75023,2666.5,2666.3,0.0603484]
[1730320938538,3.75023,2666.5,2666.2,1.6548]
[1730320938711,3.75023,2666.5,2666.4,0.06023988]
[1730320939050,3.74988,2666.8,2666.5,1.6621]
[1730320939411,3.62637177,2667.2,2666.6,0.06002285]
[1730320939618,3.74981,2666.8,2666.7,0.07498197]
[1730320939925,3.74981,2666.8,2666.7,0.05991435]
[1730320940306,3.74981,2666.8,2666.5,1.6621]
[1730320940512,6.74956,2667.0,2666.7,1.65063161]
[1730320940952,3.74956,2667.0,2666.8,0.05979922]
[1730320941254,3.62637177,2667.2,2666.7,1.65063161]
[1730320941255,3.74939,2667.1,2666.7,1.65063161]
[1730320941459,3.74939,2667.1,2666.9,0.05969074]
[1730320941611,3.74939,2667.1,2666.8,0.59537208]
[1730320941612,3.74953,2667.0,2666.8,0.6551713]
[1730320941816,3.74933,2667.2,2666.8,0.05979922]
[1730320942035,3.74933,2667.2,2666.7,5.40057161]
[1730320942241,3.7494,2667.1,2666.9,0.05968698]
[1730320942446,3.7494,2667.1,2666.7,1.65063161]
[1730320942650,3.7494,2667.1,2667.0,0.05957851]
[1730320942949,3.7494,2667.1,2666.8,0.59536808]
[1730320943111,3.7494,2667.1,2667.0,0.05957851]
[1730320943309,3.7494,2667.1,2666.8,0.59536808]
[1730320943509,3.7494,2667.1,2667.0,0.05957851]
[1730320943750,3.74953,2667.0,2666.9,0.0596815]
[1730320943948,3.74953,2667.0,2666.7,1.65063161]
[1730320944152,3.7494,2667.1,2666.7,1.65063161]
[1730320944312,3.7494,2667.1,2666.8,0.05978998]
[1730320944513,3.74956,2667.0,2666.7,1.65063161]
[1730320944858,3.7494,2667.1,2666.8,0.05978998]
[1730320945151,3.74966,2667.0,2666.8,0.05978998]
[1730320945349,3.74966,2667.0,2666.7,1.65063161]
[1730320945350,3.7494,2667.1,2666.7,1.65063161]
[1730320945658,7.49892,2667.1,2666.8,0.05978998]
[1730320945878,7.49892,2667.1,2666.7,2.19170677]
[1730320945879,3.7494,2667.1,2666.7,2.18327516]
[1730320946027,3.74974,2666.9,2666.7,1.6422]
[1730320946359,3.74949,2667.1,2666.7,1.6422]
[1730320946661,3.74959,2667.0,2666.8,0.07498259]
[1730320947465,6.74905,2667.4,2666.9,1.5807]
[1730320947466,3.74937,2667.2,2666.9,1.5807]
[1730320947621,3.74937,2667.2,2667.0,0.07497853]
[1730320948359,3.74933,2667.2,2667.0,0.07497853]
[1730320949424,3.0,2667.4,2667.0,0.07497853]
[1730320949931,3.0,2667.2,2667.0,0.07497853]
[1730320950143,3.74939,2667.1,2666.9,1.5807]
[1730320951423,3.62637177,2667.2,2666.7,1.6189]
[1730320951726,3.74981,2666.8,2666.7,1.6189]
[1730320952036,3.74981,2666.8,2666.7,0.05797246]
[1730320952247,3.74969,2666.9,2666.7,0.05797246]